[Event "Titled Tuesday Blitz April 25 Late 2023"]
[White "Svane, Frederik"]
[Black "Ismagilov, Damir"]
[WhiteFideId "12923044"]
[BlackFideId "34199982"]
[WhiteElo "2502"]
[BlackElo "2078"]
[Result "1-0"]
[Round "11"]
[TimeControl "180+2"]
[Date "2023.04.25"]
[WhiteClock "0:01:15"]
[BlackClock "0:00:24"]

1. a3 {[%clk 0:03:00]}  Nf6 {[%clk 0:02:57]} 2. Nf3 {[%clk 0:02:59]}  d5 {[%clk 0:02:57]} 3. d4 {[%clk 0:02:59]}  e6 {[%clk 0:02:57]} 4. Bg5 {[%clk 0:02:59]}  Be7 {[%clk 0:02:54]} 5. Nbd2 {[%clk 0:02:58]}  O-O {[%clk 0:02:54]} 6. e3 {[%clk 0:02:58]}  c5 {[%clk 0:02:54]} 7. c3 {[%clk 0:02:55]}  b6 {[%clk 0:02:55]} 8. Bd3 {[%clk 0:02:53]}  Bb7 {[%clk 0:02:51]} 9. O-O {[%clk 0:02:53]}  Nbd7 {[%clk 0:02:51]} 10. Ne5 {[%clk 0:02:53]}  Nxe5 {[%clk 0:02:46]} 11. dxe5 {[%clk 0:02:53]}  Nd7 {[%clk 0:02:47]} 12. Bxe7 {[%clk 0:02:53]}  Qxe7 {[%clk 0:02:48]} 13. f4 {[%clk 0:02:54]}  f6 {[%clk 0:02:48]} 14. exf6 {[%clk 0:02:53]}  Rxf6 {[%clk 0:02:45]} 15. e4 {[%clk 0:02:43]}  Raf8 {[%clk 0:02:43]} 16. Qg4 {[%clk 0:02:42]}  e5 {[%clk 0:02:37]} 17. f5 {[%clk 0:02:39]}  c4 {[%clk 0:02:26]} 18. Be2 {[%clk 0:02:39]}  b5 {[%clk 0:02:26]} 19. exd5 {[%clk 0:02:32]}  Bxd5 {[%clk 0:02:26]} 20. Bf3 {[%clk 0:02:29]}  Bxf3 {[%clk 0:02:22]} 21. Rxf3 {[%clk 0:02:30]}  Nc5 {[%clk 0:02:21]} 22. Re1 {[%clk 0:02:24]}  e4 {[%clk 0:02:02]} 23. Nxe4 {[%clk 0:02:21]}  Nxe4 {[%clk 0:02:03]} 24. Qxe4 {[%clk 0:02:13]}  Qxe4 {[%clk 0:02:00]} 25. Rxe4 {[%clk 0:02:14]}  Rxf5 {[%clk 0:02:01]} 26. Rxf5 {[%clk 0:02:13]}  Rxf5 {[%clk 0:02:02]} 27. Re7 {[%clk 0:02:08]}  Rd5 {[%clk 0:01:56]} 28. Kf2 {[%clk 0:01:59]}  Rd2+ {[%clk 0:01:49]} 29. Re2 {[%clk 0:02:00]}  Rd1 {[%clk 0:01:47]} 30. Kf3 {[%clk 0:01:53]}  Kf7 {[%clk 0:01:46]} 31. Re5 {[%clk 0:01:51]}  a6 {[%clk 0:01:44]} 32. a4 {[%clk 0:01:49]}  bxa4 {[%clk 0:01:41]} 33. Ra5 {[%clk 0:01:49]}  Rd6 {[%clk 0:01:24]} 34. Rxa4 {[%clk 0:01:48]}  Rb6 {[%clk 0:01:24]} 35. Ra2 {[%clk 0:01:46]}  Re6 {[%clk 0:01:16]} 36. Ra4 {[%clk 0:01:42]}  Rb6 {[%clk 0:01:16]} 37. Rb4 {[%clk 0:01:42]}  Rf6+ {[%clk 0:00:47]} 38. Ke3 {[%clk 0:01:40]}  Re6+ {[%clk 0:00:44]} 39. Kf4 {[%clk 0:01:41]}  Re2 {[%clk 0:00:44]} 40. Kf3 {[%clk 0:01:41]}  Rc2 {[%clk 0:00:43]} 41. h4 {[%clk 0:01:41]}  a5 {[%clk 0:00:40]} 42. Rb5 {[%clk 0:01:33]}  a4 {[%clk 0:00:40]} 43. Ra5 {[%clk 0:01:34]}  Rxb2 {[%clk 0:00:38]} 44. Rxa4 {[%clk 0:01:34]}  h5 {[%clk 0:00:34]} 45. Rxc4 {[%clk 0:01:34]}  g6 {[%clk 0:00:35]} 46. g3 {[%clk 0:01:32]}  Kf6 {[%clk 0:00:35]} 47. Rc6+ {[%clk 0:01:30]}  Kf5 {[%clk 0:00:35]} 48. Rc5+ {[%clk 0:01:31]}  Kf6 {[%clk 0:00:35]} 49. c4 {[%clk 0:01:31]}  Rb3+ {[%clk 0:00:35]} 50. Kf4 {[%clk 0:01:31]}  Rb1 {[%clk 0:00:33]} 51. Rc6+ {[%clk 0:01:31]}  Kf7 {[%clk 0:00:34]} 52. Kg5 {[%clk 0:01:28]}  Rg1 {[%clk 0:00:31]} 53. Rf6+ {[%clk 0:01:24]}  Ke7 {[%clk 0:00:31]} 54. Rxg6 {[%clk 0:01:24]}  Rxg3+ {[%clk 0:00:32]} 55. Kxh5 {[%clk 0:01:25]}  Rc3 {[%clk 0:00:32]} 56. Rg4 {[%clk 0:01:22]}  Kf7 {[%clk 0:00:28]} 57. Kg5 {[%clk 0:01:21]}  Kg7 {[%clk 0:00:27]} 58. Kf5+ {[%clk 0:01:19]}  Kh6 {[%clk 0:00:28]} 59. Ke5 {[%clk 0:01:15]}  Kh5 {[%clk 0:00:25]} 60. Rf4 {[%clk 0:01:15]}  Rc1 {[%clk 0:00:23]} 61. Kd5 {[%clk 0:01:15]}  Rd1+ {[%clk 0:00:23]} 62. Kc6 {[%clk 0:01:15]}  Rc1 {[%clk 0:00:24]} 63. c5 {[%clk 0:01:15]} 1-0


[Site "https://www.chess.com"]

[Event "Titled Tuesday Blitz April 25 Late 2023"]
[White "Makaraci, Tunahan"]
[Black "Indjic, Aleksandar"]
[WhiteFideId "6356559"]
[BlackFideId "911925"]
[WhiteElo "2160"]
[BlackElo "2614"]
[Result "0-1"]
[Round "11"]
[TimeControl "180+2"]
[Date "2023.04.25"]
[WhiteClock "0:00:04"]
[BlackClock "0:00:59"]

1. e4 {[%clk 0:03:00]}  e5 {[%clk 0:02:59]} 2. Nc3 {[%clk 0:03:00]}  Nc6 {[%clk 0:02:58]} 3. Bc4 {[%clk 0:02:59]}  Nf6 {[%clk 0:02:57]} 4. d3 {[%clk 0:02:59]}  Bc5 {[%clk 0:02:57]} 5. f4 {[%clk 0:02:59]}  d6 {[%clk 0:02:51]} 6. Nf3 {[%clk 0:02:59]}  Bg4 {[%clk 0:02:50]} 7. Bb5 {[%clk 0:02:43]}  exf4 {[%clk 0:02:38]} 8. Bxf4 {[%clk 0:02:41]}  O-O {[%clk 0:02:38]} 9. Bxc6 {[%clk 0:02:40]}  bxc6 {[%clk 0:02:38]} 10. h3 {[%clk 0:02:41]}  Bd7 {[%clk 0:02:32]} 11. Qd2 {[%clk 0:02:39]}  Rb8 {[%clk 0:02:29]} 12. O-O-O {[%clk 0:02:35]}  Re8 {[%clk 0:02:28]} 13. g4 {[%clk 0:02:29]}  Bb4 {[%clk 0:02:25]} 14. a3 {[%clk 0:02:28]}  Ba5 {[%clk 0:02:25]} 15. Nd4 {[%clk 0:02:19]}  c5 {[%clk 0:02:17]} 16. Nb3 {[%clk 0:02:19]}  Rxb3 {[%clk 0:02:15]} 17. cxb3 {[%clk 0:02:17]}  Be6 {[%clk 0:02:16]} 18. Bg5 {[%clk 0:01:43]}  h6 {[%clk 0:02:15]} 19. Bh4 {[%clk 0:01:41]}  g5 {[%clk 0:02:03]} 20. Bxg5 {[%clk 0:01:32]}  hxg5 {[%clk 0:02:01]} 21. Qxg5+ {[%clk 0:01:33]}  Kh8 {[%clk 0:02:01]} 22. Rdf1 {[%clk 0:01:30]}  Nh7 {[%clk 0:02:01]} 23. Qxd8 {[%clk 0:01:20]}  Rxd8 {[%clk 0:02:02]} 24. Nd5 {[%clk 0:01:21]}  c6 {[%clk 0:02:01]} 25. b4 {[%clk 0:01:16]}  cxd5 {[%clk 0:01:55]} 26. bxa5 {[%clk 0:01:15]}  dxe4 {[%clk 0:01:53]} 27. dxe4 {[%clk 0:01:15]}  Ng5 {[%clk 0:01:54]} 28. Rf4 {[%clk 0:01:12]}  Kg7 {[%clk 0:01:47]} 29. h4 {[%clk 0:01:12]}  Nh7 {[%clk 0:01:47]} 30. g5 {[%clk 0:01:11]}  d5 {[%clk 0:01:41]} 31. exd5 {[%clk 0:01:09]}  Rxd5 {[%clk 0:01:42]} 32. Rd1 {[%clk 0:01:07]}  Re5 {[%clk 0:01:42]} 33. b4 {[%clk 0:01:01]}  Nf8 {[%clk 0:01:34]} 34. Kb2 {[%clk 0:00:38]}  Ng6 {[%clk 0:01:33]} 35. Rf2 {[%clk 0:00:34]}  Nxh4 {[%clk 0:01:32]} 36. Rc2 {[%clk 0:00:34]}  cxb4 {[%clk 0:01:31]} 37. axb4 {[%clk 0:00:35]}  Nf3 {[%clk 0:01:29]} 38. Rc5 {[%clk 0:00:28]}  Re3 {[%clk 0:01:20]} 39. Rc3 {[%clk 0:00:26]}  Re2+ {[%clk 0:01:19]} 40. Rc2 {[%clk 0:00:22]}  Re4 {[%clk 0:01:18]} 41. Ka3 {[%clk 0:00:20]}  Re3+ {[%clk 0:01:18]} 42. Kb2 {[%clk 0:00:17]}  Rb3+ {[%clk 0:01:16]} 43. Kc1 {[%clk 0:00:16]}  Rxb4 {[%clk 0:01:16]} 44. Rc3 {[%clk 0:00:16]}  Nxg5 {[%clk 0:01:13]} 45. Rg1 {[%clk 0:00:15]}  Rb5 {[%clk 0:01:14]} 46. Rcg3 {[%clk 0:00:13]}  f6 {[%clk 0:01:12]} 47. Re3 {[%clk 0:00:13]}  Kf7 {[%clk 0:01:11]} 48. Ra3 {[%clk 0:00:11]}  Bf5 {[%clk 0:01:09]} 49. Kd2 {[%clk 0:00:10]}  Ne6 {[%clk 0:01:02]} 50. Ke3 {[%clk 0:00:10]}  Re5+ {[%clk 0:01:01]} 51. Kf2 {[%clk 0:00:10]}  Nd4 {[%clk 0:01:02]} 52. Rc1 {[%clk 0:00:08]}  Re2+ {[%clk 0:01:01]} 53. Kg3 {[%clk 0:00:06]}  Be4 {[%clk 0:01:01]} 54. Rc7+ {[%clk 0:00:05]}  Kg6 {[%clk 0:01:00]} 55. Kf4 {[%clk 0:00:05]}  Ne6+ {[%clk 0:00:59]} 56. Kg3 {[%clk 0:00:04]} 0-1


[Site "https://www.chess.com"]

[Event "Titled Tuesday Blitz April 25 Late 2023"]
[White "Rozen, Eytan"]
[Black "Rosen, Eric"]
[WhiteFideId "2816750"]
[BlackFideId "2032562"]
[WhiteElo "2451"]
[BlackElo "2331"]
[Result "1-0"]
[Round "11"]
[TimeControl "180+2"]
[Date "2023.04.25"]
[WhiteClock "0:01:22"]
[BlackClock "0:00:03"]

1. c4 {[%clk 0:02:59]}  e6 {[%clk 0:03:00]} 2. Nf3 {[%clk 0:02:53]}  d5 {[%clk 0:03:00]} 3. e3 {[%clk 0:02:54]}  Nf6 {[%clk 0:02:59]} 4. b3 {[%clk 0:02:54]}  b6 {[%clk 0:02:58]} 5. Bb2 {[%clk 0:02:53]}  Bb7 {[%clk 0:02:59]} 6. Nc3 {[%clk 0:02:45]}  a6 {[%clk 0:02:58]} 7. cxd5 {[%clk 0:02:38]}  Nxd5 {[%clk 0:02:58]} 8. Be2 {[%clk 0:02:32]}  Be7 {[%clk 0:02:48]} 9. Nxd5 {[%clk 0:02:29]}  Qxd5 {[%clk 0:02:47]} 10. Bxg7 {[%clk 0:02:27]}  Rg8 {[%clk 0:02:46]} 11. Be5 {[%clk 0:02:27]}  Rxg2 {[%clk 0:02:21]} 12. Bg3 {[%clk 0:02:26]}  Qh5 {[%clk 0:02:22]} 13. Nh4 {[%clk 0:02:19]}  Qxh4 {[%clk 0:02:06]} 14. Bxh4 {[%clk 0:02:18]}  Bxh4 {[%clk 0:02:07]} 15. Bf3 {[%clk 0:01:50]}  Rxf2 {[%clk 0:01:22]} 16. Bxb7 {[%clk 0:01:49]}  Ra7 {[%clk 0:01:11]} 17. Qh5 {[%clk 0:01:47]}  Rxb7 {[%clk 0:00:50]} 18. Qxh4 {[%clk 0:01:46]}  Rf5 {[%clk 0:00:49]} 19. Rg1 {[%clk 0:01:45]}  Nc6 {[%clk 0:00:46]} 20. Rg8+ {[%clk 0:01:45]}  Kd7 {[%clk 0:00:46]} 21. O-O-O {[%clk 0:01:44]}  a5 {[%clk 0:00:41]} 22. Qxh7 {[%clk 0:01:43]}  a4 {[%clk 0:00:31]} 23. e4 {[%clk 0:01:35]}  Rf2 {[%clk 0:00:16]} 24. Qh4 {[%clk 0:01:32]}  Rf3 {[%clk 0:00:14]} 25. Qh5 {[%clk 0:01:32]}  Rf2 {[%clk 0:00:12]} 26. Rf8 {[%clk 0:01:23]}  Ke7 {[%clk 0:00:11]} 27. Qh4+ {[%clk 0:01:24]}  Kxf8 {[%clk 0:00:11]} 28. Qxf2 {[%clk 0:01:24]}  axb3 {[%clk 0:00:09]} 29. axb3 {[%clk 0:01:25]}  Ne5 {[%clk 0:00:09]} 30. d4 {[%clk 0:01:23]}  Ng6 {[%clk 0:00:03]} 31. Rg1 {[%clk 0:01:22]}  Kg7 {[%clk 0:00:03]} 32. h4 {[%clk 0:01:22]} 1-0


[Site "https://www.chess.com"]

[Event "Titled Tuesday Blitz April 25 Late 2023"]
[White "Kavutskiy, Konstantin"]
[Black "Baskakov, Egor"]
[WhiteFideId "2026384"]
[BlackFideId "24197866"]
[WhiteElo "2323"]
[BlackElo "2212"]
[Result "0-1"]
[Round "11"]
[TimeControl "180+2"]
[Date "2023.04.25"]
[WhiteClock "0:00:14"]
[BlackClock "0:01:02"]

1. d4 {[%clk 0:03:00]}  Nf6 {[%clk 0:03:00]} 2. Bg5 {[%clk 0:02:59]}  e6 {[%clk 0:02:59]} 3. Nd2 {[%clk 0:02:59]}  d5 {[%clk 0:02:59]} 4. e3 {[%clk 0:02:59]}  Be7 {[%clk 0:02:58]} 5. Bd3 {[%clk 0:02:58]}  h6 {[%clk 0:02:59]} 6. Bh4 {[%clk 0:02:57]}  c5 {[%clk 0:02:58]} 7. c3 {[%clk 0:02:57]}  Nc6 {[%clk 0:02:57]} 8. Ngf3 {[%clk 0:02:56]}  g5 {[%clk 0:02:55]} 9. Bg3 {[%clk 0:02:55]}  Nh5 {[%clk 0:02:55]} 10. Qe2 {[%clk 0:02:40]}  Nxg3 {[%clk 0:02:56]} 11. hxg3 {[%clk 0:02:40]}  Qb6 {[%clk 0:02:45]} 12. O-O-O {[%clk 0:02:37]}  Bd7 {[%clk 0:02:43]} 13. dxc5 {[%clk 0:02:33]}  Bxc5 {[%clk 0:02:41]} 14. Nxg5 {[%clk 0:02:25]}  Ne5 {[%clk 0:02:33]} 15. Nb3 {[%clk 0:02:02]}  O-O-O {[%clk 0:02:29]} 16. Nf3 {[%clk 0:01:56]}  Nxd3+ {[%clk 0:02:25]} 17. Qxd3 {[%clk 0:01:57]}  Bb5 {[%clk 0:02:24]} 18. Qd2 {[%clk 0:01:55]}  Bd6 {[%clk 0:02:20]} 19. Rh4 {[%clk 0:01:43]}  Kb8 {[%clk 0:02:05]} 20. Rdh1 {[%clk 0:01:41]}  Qa6 {[%clk 0:01:59]} 21. Kb1 {[%clk 0:01:35]}  Bd3+ {[%clk 0:01:59]} 22. Ka1 {[%clk 0:01:33]}  Bc4 {[%clk 0:02:00]} 23. Nc1 {[%clk 0:01:31]}  e5 {[%clk 0:01:43]} 24. Rxh6 {[%clk 0:01:24]}  Rxh6 {[%clk 0:01:38]} 25. Rxh6 {[%clk 0:01:24]}  Qa5 {[%clk 0:01:29]} 26. Rf6 {[%clk 0:01:05]}  b5 {[%clk 0:01:16]} 27. b3 {[%clk 0:00:54]}  Bf1 {[%clk 0:01:16]} 28. Nh4 {[%clk 0:00:33]}  d4 {[%clk 0:01:04]} 29. exd4 {[%clk 0:00:31]}  exd4 {[%clk 0:01:04]} 30. Qxd4 {[%clk 0:00:18]}  Bc7 {[%clk 0:01:04]} 31. Qb4 {[%clk 0:00:13]}  Qxb4 {[%clk 0:01:02]} 32. cxb4 {[%clk 0:00:14]}  Be5+ {[%clk 0:01:02]} 33. Kb1 {[%clk 0:00:14]}  Bxf6 {[%clk 0:01:02]} 0-1


[Site "https://www.chess.com"]

[Event "Titled Tuesday Blitz April 25 Late 2023"]
[White "Shapiro, Viktor"]
[Black "Goltsev, Dmitry"]
[WhiteFideId "4175700"]
[BlackFideId "24176710"]
[WhiteElo "2152"]
[BlackElo "2336"]
[Result "0-1"]
[Round "11"]
[TimeControl "180+2"]
[Date "2023.04.25"]
[WhiteClock "0:00:05"]
[BlackClock "0:00:11"]

1. Nf3 {[%clk 0:03:00]}  d5 {[%clk 0:02:56]} 2. g3 {[%clk 0:03:00]}  c6 {[%clk 0:02:56]} 3. Bg2 {[%clk 0:03:01]}  Nf6 {[%clk 0:02:57]} 4. d3 {[%clk 0:03:01]}  g6 {[%clk 0:02:58]} 5. O-O {[%clk 0:03:02]}  Bg7 {[%clk 0:02:58]} 6. Nbd2 {[%clk 0:03:02]}  O-O {[%clk 0:02:58]} 7. c4 {[%clk 0:03:02]}  Nbd7 {[%clk 0:02:58]} 8. Rb1 {[%clk 0:03:00]}  e5 {[%clk 0:02:58]} 9. b4 {[%clk 0:02:57]}  e4 {[%clk 0:02:56]} 10. Nd4 {[%clk 0:02:55]}  Ng4 {[%clk 0:02:52]} 11. N2b3 {[%clk 0:02:52]}  Nb6 {[%clk 0:02:42]} 12. c5 {[%clk 0:02:48]}  Na4 {[%clk 0:02:37]} 13. Qc2 {[%clk 0:02:43]}  f5 {[%clk 0:02:32]} 14. Bf4 {[%clk 0:02:22]}  Re8 {[%clk 0:02:25]} 15. h3 {[%clk 0:02:12]}  Ne5 {[%clk 0:02:23]} 16. dxe4 {[%clk 0:02:07]}  fxe4 {[%clk 0:02:23]} 17. Rbd1 {[%clk 0:01:55]}  Nc4 {[%clk 0:02:15]} 18. b5 {[%clk 0:01:40]}  Bd7 {[%clk 0:02:06]} 19. bxc6 {[%clk 0:01:38]}  bxc6 {[%clk 0:02:07]} 20. f3 {[%clk 0:01:20]}  e3 {[%clk 0:02:04]} 21. h4 {[%clk 0:01:09]}  Qe7 {[%clk 0:01:35]} 22. Na5 {[%clk 0:00:58]}  Qxc5 {[%clk 0:01:11]} 23. Nb7 {[%clk 0:00:38]}  Qa3 {[%clk 0:01:06]} 24. Rd3 {[%clk 0:00:34]}  Qb2 {[%clk 0:00:54]} 25. Qxa4 {[%clk 0:00:25]}  Bxd4 {[%clk 0:00:49]} 26. Qb3 {[%clk 0:00:09]}  c5 {[%clk 0:00:33]} 27. Nxc5 {[%clk 0:00:05]}  Bc6 {[%clk 0:00:11]} 0-1


[Site "https://www.chess.com"]

[Event "Titled Tuesday Blitz April 25 Late 2023"]
[White "Weetik, Vjacheslav"]
[Black "Silva, Miguel Antonio Neto"]
[WhiteFideId "4153472"]
[BlackFideId "1911929"]
[WhiteElo "2469"]
[BlackElo "2223"]
[Result "1-0"]
[Round "11"]
[TimeControl "180+2"]
[Date "2023.04.25"]
[WhiteClock "0:01:12"]
[BlackClock "0:00:39"]

1. d4 {[%clk 0:02:59]}  Nf6 {[%clk 0:02:58]} 2. Bf4 {[%clk 0:03:00]}  d5 {[%clk 0:02:55]} 3. e3 {[%clk 0:03:00]}  c5 {[%clk 0:02:54]} 4. c3 {[%clk 0:02:59]}  Nc6 {[%clk 0:02:46]} 5. Nd2 {[%clk 0:02:59]}  e6 {[%clk 0:02:37]} 6. Bd3 {[%clk 0:02:59]}  Bd6 {[%clk 0:02:29]} 7. Bxd6 {[%clk 0:02:59]}  Qxd6 {[%clk 0:02:28]} 8. f4 {[%clk 0:03:00]}  b6 {[%clk 0:02:22]} 9. Ngf3 {[%clk 0:02:59]}  Bb7 {[%clk 0:02:22]} 10. Ne5 {[%clk 0:02:59]}  O-O {[%clk 0:02:21]} 11. O-O {[%clk 0:02:59]}  Ne7 {[%clk 0:02:19]} 12. Qf3 {[%clk 0:02:59]}  Qc7 {[%clk 0:02:16]} 13. g4 {[%clk 0:02:58]}  Nd7 {[%clk 0:02:08]} 14. Qh3 {[%clk 0:02:54]}  f5 {[%clk 0:02:02]} 15. Ndf3 {[%clk 0:02:49]}  Nxe5 {[%clk 0:01:43]} 16. Nxe5 {[%clk 0:02:48]}  a5 {[%clk 0:01:38]} 17. Rf2 {[%clk 0:02:31]}  Ba6 {[%clk 0:01:35]} 18. Bc2 {[%clk 0:02:31]}  cxd4 {[%clk 0:01:31]} 19. exd4 {[%clk 0:02:31]}  b5 {[%clk 0:01:31]} 20. Rg2 {[%clk 0:02:23]}  b4 {[%clk 0:01:30]} 21. gxf5 {[%clk 0:02:17]}  Nxf5 {[%clk 0:01:29]} 22. Kh1 {[%clk 0:01:57]}  bxc3 {[%clk 0:01:28]} 23. bxc3 {[%clk 0:01:57]}  Rac8 {[%clk 0:01:26]} 24. Rag1 {[%clk 0:01:54]}  Kh8 {[%clk 0:00:55]} 25. Ng6+ {[%clk 0:01:38]}  Kg8 {[%clk 0:00:54]} 26. Nxf8 {[%clk 0:01:36]}  Rxf8 {[%clk 0:00:55]} 27. Bxf5 {[%clk 0:01:24]}  Rxf5 {[%clk 0:00:55]} 28. Qh6 {[%clk 0:01:15]}  Rf7 {[%clk 0:00:39]} 29. Qxe6 {[%clk 0:01:14]}  Bc8 {[%clk 0:00:39]} 30. Rxg7+ {[%clk 0:01:12]} 1-0


[Site "https://www.chess.com"]

[Event "Titled Tuesday Blitz April 25 Late 2023"]
[White "Piesik, Piotr"]
[Black "Harriott, Tyrell"]
[WhiteFideId "1136194"]
[BlackFideId "2086484"]
[WhiteElo "2299"]
[BlackElo "2107"]
[Result "1-0"]
[Round "11"]
[TimeControl "180+2"]
[Date "2023.04.25"]
[WhiteClock "0:00:03"]
[BlackClock "0:00:04"]

1. Nf3 {[%clk 0:02:41]}  e6 {[%clk 0:02:59]} 2. g3 {[%clk 0:02:41]}  d5 {[%clk 0:03:00]} 3. Bg2 {[%clk 0:02:42]}  Bd6 {[%clk 0:03:00]} 4. O-O {[%clk 0:02:43]}  f5 {[%clk 0:03:00]} 5. d3 {[%clk 0:02:43]}  Nf6 {[%clk 0:03:00]} 6. Nbd2 {[%clk 0:02:43]}  f4 {[%clk 0:03:00]} 7. e4 {[%clk 0:02:40]}  fxe3 {[%clk 0:03:00]} 8. fxe3 {[%clk 0:02:41]}  O-O {[%clk 0:02:56]} 9. Kh1 {[%clk 0:02:41]}  Qe8 {[%clk 0:02:46]} 10. Qe2 {[%clk 0:02:40]}  Qh5 {[%clk 0:02:44]} 11. Kg1 {[%clk 0:02:34]}  Ng4 {[%clk 0:02:39]} 12. e4 {[%clk 0:02:31]}  Nxh2 {[%clk 0:02:38]} 13. e5 {[%clk 0:02:26]}  Bc5+ {[%clk 0:02:10]} 14. d4 {[%clk 0:02:25]}  Bb6 {[%clk 0:02:10]} 15. Re1 {[%clk 0:02:13]}  Ng4 {[%clk 0:02:03]} 16. Nb3 {[%clk 0:02:10]}  Na6 {[%clk 0:01:55]} 17. Bf4 {[%clk 0:01:43]}  c5 {[%clk 0:01:45]} 18. c3 {[%clk 0:01:41]}  Bd7 {[%clk 0:01:37]} 19. Nh4 {[%clk 0:01:18]}  Rxf4 {[%clk 0:01:36]} 20. gxf4 {[%clk 0:01:18]}  Qxh4 {[%clk 0:01:36]} 21. Bf3 {[%clk 0:01:18]}  Nh6 {[%clk 0:01:11]} 22. Qh2 {[%clk 0:01:08]}  Qe7 {[%clk 0:00:54]} 23. Kh1 {[%clk 0:01:04]}  Ba4 {[%clk 0:00:48]} 24. dxc5 {[%clk 0:01:02]}  Nxc5 {[%clk 0:00:47]} 25. Nd4 {[%clk 0:01:02]}  Ne4 {[%clk 0:00:43]} 26. Rg1 {[%clk 0:00:55]}  Nf5 {[%clk 0:00:36]} 27. Nxf5 {[%clk 0:00:37]}  exf5 {[%clk 0:00:35]} 28. Rg2 {[%clk 0:00:38]}  Rc8 {[%clk 0:00:21]} 29. Qh5 {[%clk 0:00:38]}  Rf8 {[%clk 0:00:18]} 30. Be2 {[%clk 0:00:29]}  Bc6 {[%clk 0:00:15]} 31. Bf3 {[%clk 0:00:27]}  d4 {[%clk 0:00:15]} 32. cxd4 {[%clk 0:00:25]}  Bxd4 {[%clk 0:00:16]} 33. Kh2 {[%clk 0:00:24]}  Be3 {[%clk 0:00:16]} 34. Re1 {[%clk 0:00:19]}  Bxf4+ {[%clk 0:00:15]} 35. Kh3 {[%clk 0:00:19]}  Bxe5 {[%clk 0:00:15]} 36. Reg1 {[%clk 0:00:13]}  Bd4 {[%clk 0:00:12]} 37. Rd1 {[%clk 0:00:11]}  Be5 {[%clk 0:00:12]} 38. Rdg1 {[%clk 0:00:11]}  Bd4 {[%clk 0:00:11]} 39. Rd1 {[%clk 0:00:11]}  Bb6 {[%clk 0:00:11]} 40. Re1 {[%clk 0:00:06]}  Qf6 {[%clk 0:00:09]} 41. Rf1 {[%clk 0:00:05]}  Kh8 {[%clk 0:00:08]} 42. Be2 {[%clk 0:00:04]}  Qd4 {[%clk 0:00:07]} 43. Rxf5 {[%clk 0:00:02]}  Bd7 {[%clk 0:00:05]} 44. Bg4 {[%clk 0:00:03]}  Bxf5 {[%clk 0:00:05]} 45. Bxf5 {[%clk 0:00:04]}  Qf6 {[%clk 0:00:04]} 46. Qxh7# {[%clk 0:00:03]} 1-0


[Site "https://www.chess.com"]

[Event "Titled Tuesday Blitz April 25 Late 2023"]
[White "Liu, Casper"]
[Black "Preotu, Razvan"]
[WhiteFideId "1454153"]
[BlackFideId "2613280"]
[WhiteElo "2221"]
[BlackElo "2407"]
[Result "0-1"]
[Round "11"]
[TimeControl "180+2"]
[Date "2023.04.25"]
[WhiteClock "0:00:17"]
[BlackClock "0:00:07"]

1. e4 {[%clk 0:02:55]}  c5 {[%clk 0:03:00]} 2. Nf3 {[%clk 0:02:51]}  d6 {[%clk 0:03:00]} 3. c3 {[%clk 0:02:51]}  Nf6 {[%clk 0:03:00]} 4. Bd3 {[%clk 0:02:51]}  Nc6 {[%clk 0:02:57]} 5. Bc2 {[%clk 0:02:51]}  Bg4 {[%clk 0:02:55]} 6. h3 {[%clk 0:02:52]}  Bh5 {[%clk 0:02:55]} 7. d3 {[%clk 0:02:47]}  e6 {[%clk 0:02:47]} 8. O-O {[%clk 0:02:46]}  d5 {[%clk 0:02:42]} 9. exd5 {[%clk 0:02:43]}  Qxd5 {[%clk 0:02:40]} 10. Nbd2 {[%clk 0:02:43]}  O-O-O {[%clk 0:02:32]} 11. Re1 {[%clk 0:02:43]}  Be7 {[%clk 0:02:05]} 12. Qe2 {[%clk 0:02:34]}  g5 {[%clk 0:01:50]} 13. c4 {[%clk 0:02:19]}  Qd7 {[%clk 0:01:47]} 14. Qe3 {[%clk 0:02:14]}  g4 {[%clk 0:01:42]} 15. Ne5 {[%clk 0:02:07]}  Nxe5 {[%clk 0:01:41]} 16. Qxe5 {[%clk 0:02:08]}  gxh3 {[%clk 0:01:40]} 17. g3 {[%clk 0:02:09]}  h2+ {[%clk 0:01:31]} 18. Kg2 {[%clk 0:02:06]}  Qc6+ {[%clk 0:01:30]} 19. Ne4 {[%clk 0:02:05]}  Bg6 {[%clk 0:01:04]} 20. Bf4 {[%clk 0:02:00]}  Nxe4 {[%clk 0:00:58]} 21. dxe4 {[%clk 0:02:01]}  Bd6 {[%clk 0:00:56]} 22. Qf6 {[%clk 0:01:59]}  Bxf4 {[%clk 0:00:54]} 23. Qxf4 {[%clk 0:02:00]}  Rd4 {[%clk 0:00:34]} 24. Rad1 {[%clk 0:01:43]}  Rxc4 {[%clk 0:00:28]} 25. Bb1 {[%clk 0:01:28]}  Qc7 {[%clk 0:00:22]} 26. Qf6 {[%clk 0:01:12]}  Rd8 {[%clk 0:00:22]} 27. b3 {[%clk 0:01:06]}  Rcd4 {[%clk 0:00:22]} 28. Rc1 {[%clk 0:01:04]}  Kb8 {[%clk 0:00:21]} 29. Kxh2 {[%clk 0:01:03]}  Rd2 {[%clk 0:00:20]} 30. Kg2 {[%clk 0:00:58]}  Qd6 {[%clk 0:00:20]} 31. Rc4 {[%clk 0:00:55]}  b6 {[%clk 0:00:10]} 32. Rec1 {[%clk 0:00:54]}  h5 {[%clk 0:00:09]} 33. b4 {[%clk 0:00:54]}  cxb4 {[%clk 0:00:09]} 34. Rc6 {[%clk 0:00:52]}  Qd4 {[%clk 0:00:09]} 35. Qf4+ {[%clk 0:00:51]}  e5 {[%clk 0:00:07]} 36. Qf6 {[%clk 0:00:52]}  h4 {[%clk 0:00:04]} 37. R1c4 {[%clk 0:00:38]}  h3+ {[%clk 0:00:03]} 38. Kxh3 {[%clk 0:00:31]}  Qxf2 {[%clk 0:00:03]} 39. Qxe5+ {[%clk 0:00:27]}  Ka8 {[%clk 0:00:03]} 40. Rc8+ {[%clk 0:00:25]}  Rxc8 {[%clk 0:00:02]} 41. Rxc8+ {[%clk 0:00:25]}  Kb7 {[%clk 0:00:03]} 42. Qc7+ {[%clk 0:00:20]}  Ka6 {[%clk 0:00:04]} 43. Qc4+ {[%clk 0:00:20]}  Ka5 {[%clk 0:00:04]} 44. Rc7 {[%clk 0:00:18]}  Qh2+ {[%clk 0:00:03]} 45. Kg4 {[%clk 0:00:18]}  Qh5+ {[%clk 0:00:03]} 46. Kf4 {[%clk 0:00:19]}  Rf2+ {[%clk 0:00:02]} 47. Ke3 {[%clk 0:00:19]}  Qf3+ {[%clk 0:00:02]} 48. Kd4 {[%clk 0:00:20]}  Rd2+ {[%clk 0:00:02]} 49. Ke5 {[%clk 0:00:20]}  Qxg3+ {[%clk 0:00:03]} 50. Kf6 {[%clk 0:00:20]}  Qc3+ {[%clk 0:00:02]} 51. Qxc3 {[%clk 0:00:19]}  bxc3 {[%clk 0:00:03]} 52. Rxc3 {[%clk 0:00:20]}  Rb2 {[%clk 0:00:03]} 53. Bd3 {[%clk 0:00:18]}  Rxa2 {[%clk 0:00:03]} 54. Rc7 {[%clk 0:00:19]}  Kb4 {[%clk 0:00:03]} 55. Bc4 {[%clk 0:00:19]}  Rf2+ {[%clk 0:00:02]} 56. Kg7 {[%clk 0:00:19]}  Rc2 {[%clk 0:00:03]} 57. Rxa7 {[%clk 0:00:15]}  Rxc4 {[%clk 0:00:04]} 58. e5 {[%clk 0:00:16]}  Re4 {[%clk 0:00:04]} 59. Rb7 {[%clk 0:00:16]}  b5 {[%clk 0:00:04]} 60. e6 {[%clk 0:00:15]}  Rxe6 {[%clk 0:00:04]} 61. Rd7 {[%clk 0:00:15]}  Kc4 {[%clk 0:00:04]} 62. Rc7+ {[%clk 0:00:16]}  Kd5 {[%clk 0:00:05]} 63. Rd7+ {[%clk 0:00:16]}  Kc5 {[%clk 0:00:05]} 64. Rd1 {[%clk 0:00:15]}  b4 {[%clk 0:00:06]} 65. Rc1+ {[%clk 0:00:16]}  Kb5 {[%clk 0:00:06]} 66. Rc7 {[%clk 0:00:16]}  b3 {[%clk 0:00:07]} 67. Rb7+ {[%clk 0:00:16]}  Rb6 {[%clk 0:00:07]} 68. Re7 {[%clk 0:00:17]}  b2 {[%clk 0:00:07]} 0-1


[Site "https://www.chess.com"]